[Event "Open Nuevo Centro. Jornada 1"]
[Site "Chess.com"]
[Date "2020.06.19"]
[Round "7"]
[White "Salvador Buiza, Victor"]
[Black "Gracia Calvo, Andres"]
[Result "1-0"]
[WhiteElo "1568"]
[BlackElo "1832"]
[TimeControl "180+2"]
[EndTime "11:53:49 PDT"]
[Termination "Victoria de TERROROSCURO666 por jaque mate"]

1. e4 {[%clk 0:03:01.9]} 1... d5 {[%clk 0:03:01]} 2. exd5 {[%clk 0:03:01.6]}
2... Qxd5 {[%clk 0:03:01.9]} 3. Nc3 {[%clk 0:03:02.3]} 3... Qd6 {[%clk
0:03:02.8]} 4. d4 {[%clk 0:03:02.9]} 4... Nf6 {[%clk 0:03:04]} 5. Nf3 {[%clk
0:03:01.6]} 5... Bg4 {[%clk 0:03:05.1]} 6. Be2 {[%clk 0:03:02.4]} 6... e6 {[%clk
0:03:06.1]} 7. O-O {[%clk 0:03:01.6]} 7... Be7 {[%clk 0:03:06.8]} 8. Ne5 {[%clk
0:02:57.4]} 8... Bxe2 {[%clk 0:03:07.1]} 9. Nxe2 {[%clk 0:02:57.9]} 9... Nbd7
{[%clk 0:03:03.7]} 10. Bf4 {[%clk 0:02:56.6]} 10... Qb6 {[%clk 0:03:00.4]} 11.
b3 {[%clk 0:02:30.4]} 11... Rd8 {[%clk 0:02:57.6]} 12. c4 {[%clk 0:02:25.2]}
12... c5 {[%clk 0:02:46.7]} 13. dxc5 {[%clk 0:02:15]} 13... Nxc5 {[%clk
0:02:39.3]} 14. Qc2 {[%clk 0:02:05.3]} 14... O-O {[%clk 0:02:32.5]} 15. Be3
{[%clk 0:01:52.9]} 15... Qc7 {[%clk 0:02:27.8]} 16. Nf3 {[%clk 0:01:50.7]} 16...
b6 {[%clk 0:02:18.6]} 17. Rad1 {[%clk 0:01:46.7]} 17... Nce4 {[%clk 0:02:17]}
18. Bd4 {[%clk 0:01:35.5]} 18... Rd7 {[%clk 0:01:53.6]} 19. Be5 {[%clk 0:01:34]}
19... Qc8 {[%clk 0:01:44.3]} 20. Rxd7 {[%clk 0:01:32.4]} 20... Qxd7 {[%clk
0:01:40.1]} 21. Rd1 {[%clk 0:01:32.9]} 21... Qc8 {[%clk 0:01:37.8]} 22. Bxf6
{[%clk 0:01:17]} 22... Nxf6 {[%clk 0:01:37.4]} 23. Ne5 {[%clk 0:01:16.5]} 23...
Rd8 {[%clk 0:01:26.2]} 24. Nd4 {[%clk 0:01:11.2]} 24... Bc5 {[%clk 0:01:19]} 25.
Ndc6 {[%clk 0:01:04.7]} 25... Rxd1+ {[%clk 0:01:08.9]} 26. Qxd1 {[%clk
0:01:05.2]} 26... Kf8 {[%clk 0:01:05.3]} 27. Nxa7 {[%clk 0:00:53.9]} 27... Qc7
{[%clk 0:00:57.9]} 28. Nac6 {[%clk 0:00:43.1]} 28... Ne4 {[%clk 0:00:48.9]} 29.
Qd7 {[%clk 0:00:18.8]} 29... Qxd7 {[%clk 0:00:49]} 30. Nxd7+ {[%clk 0:00:19.6]}
30... Ke8 {[%clk 0:00:48.8]} 31. Nxc5 {[%clk 0:00:21]} 31... Nxc5 {[%clk
0:00:49.8]} 32. Ne5 {[%clk 0:00:22.4]} 32... f6 {[%clk 0:00:47.4]} 33. Nc6
{[%clk 0:00:21.9]} 33... Kd7 {[%clk 0:00:47.6]} 34. Nb4 {[%clk 0:00:22.4]} 34...
Kd6 {[%clk 0:00:41.8]} 35. Kf1 {[%clk 0:00:23.1]} 35... Ne4 {[%clk 0:00:40.6]}
36. Ke2 {[%clk 0:00:23.1]} 36... f5 {[%clk 0:00:35.5]} 37. f3 {[%clk 0:00:23.3]}
37... Nc5 {[%clk 0:00:34.8]} 38. Nd3 {[%clk 0:00:23.3]} 38... Nd7 {[%clk
0:00:33.4]} 39. Nf4 {[%clk 0:00:24]} 39... g5 {[%clk 0:00:31]} 40. Nd3 {[%clk
0:00:23.9]} 40... e5 {[%clk 0:00:28.2]} 41. a3 {[%clk 0:00:25.1]} 41... Nf6
{[%clk 0:00:25.4]} 42. b4 {[%clk 0:00:25.8]} 42... e4 {[%clk 0:00:24.9]} 43.
fxe4 {[%clk 0:00:26.6]} 43... Nxe4 {[%clk 0:00:25]} 44. Ke3 {[%clk 0:00:26.3]}
44... Nc3 {[%clk 0:00:24.3]} 45. Kd4 {[%clk 0:00:24.7]} 45... Ne2+ {[%clk
0:00:23.6]} 46. Ke3 {[%clk 0:00:24.5]} 46... Nc3 {[%clk 0:00:23.8]} 47. h3
{[%clk 0:00:24.4]} 47... h5 {[%clk 0:00:22.7]} 48. g3 {[%clk 0:00:24.1]} 48...
Ne4 {[%clk 0:00:21.9]} 49. h4 {[%clk 0:00:21.5]} 49... gxh4 {[%clk 0:00:19.1]}
50. gxh4 {[%clk 0:00:22.3]} 50... Nc3 {[%clk 0:00:18.4]} 51. Kf4 {[%clk
0:00:22.7]} 51... Ke6 {[%clk 0:00:19.1]} 52. c5 {[%clk 0:00:23]} 52... bxc5
{[%clk 0:00:19.6]} 53. Nxc5+ {[%clk 0:00:23.7]} 53... Kf6 {[%clk 0:00:19.4]} 54.
a4 {[%clk 0:00:24.8]} 54... Nd5+ {[%clk 0:00:19.5]} 55. Kf3 {[%clk 0:00:25.9]}
55... Nxb4 {[%clk 0:00:20.6]} 56. a5 {[%clk 0:00:25.2]} 56... Ke5 {[%clk
0:00:21.1]} 57. a6 {[%clk 0:00:24.2]} 57... Nc6 {[%clk 0:00:20]} 58. Nd7+ {[%clk
0:00:24.3]} 58... Ke6 {[%clk 0:00:18.9]} 59. Nb8 {[%clk 0:00:24.5]} 59... Ke5
{[%clk 0:00:18.3]} 60. Nxc6+ {[%clk 0:00:25]} 60... Kd6 {[%clk 0:00:19.1]} 61.
a7 {[%clk 0:00:25.3]} 61... Kxc6 {[%clk 0:00:19.8]} 62. a8=Q+ {[%clk 0:00:25.9]}
62... Kc7 {[%clk 0:00:20.8]} 63. Qh8 {[%clk 0:00:27.3]} 63... Kd6 {[%clk
0:00:21.7]} 64. Qxh5 {[%clk 0:00:28.2]} 64... Ke6 {[%clk 0:00:23.6]} 65. Kf4
{[%clk 0:00:29.5]} 65... Kd5 {[%clk 0:00:23.8]} 66. Qxf5+ {[%clk 0:00:30.2]}
66... Kd4 {[%clk 0:00:24.1]} 67. h5 {[%clk 0:00:31.5]} 67... Kc4 {[%clk
0:00:23.8]} 68. h6 {[%clk 0:00:32.8]} 68... Kd4 {[%clk 0:00:24.6]} 69. h7 {[%clk
0:00:34.2]} 69... Kc4 {[%clk 0:00:26]} 70. Ke4 {[%clk 0:00:35]} 70... Kc3 {[%clk
0:00:27.2]} 71. Qc5+ {[%clk 0:00:35.3]} 71... Kd2 {[%clk 0:00:28]} 72. h8=Q
{[%clk 0:00:35.2]} 72... Ke2 {[%clk 0:00:28.5]} 73. Qh2+ {[%clk 0:00:35.6]}
73... Kf1 {[%clk 0:00:29.1]} 74. Qcg1# {[%clk 0:00:36.5]} 1

[Event "Open Nuevo Centro. Jornada 1"]
[Site "Chess.com"]
[Date "2020.06.19"]
[Round "7"]
[White "Macias Pino, Diego"]
[Black "Lloret Ramis, Juan Jos�"]
[Result "1-0"]
[WhiteElo "2179"]
[BlackElo "1978"]
[TimeControl "180+2"]
[EndTime "11:53:51 PDT"]
[Termination "Victoria de jesuimafe por abandono"]

1. e4 {[%clk 0:03:01.9]} 1... e6 {[%clk 0:03:01.2]} 2. d4 {[%clk 0:03:02.3]}
2... d5 {[%clk 0:03:02.7]} 3. Nd2 {[%clk 0:03:02.7]} 3... Nf6 {[%clk 0:02:58.1]}
4. e5 {[%clk 0:02:43.7]} 4... Ne4 {[%clk 0:02:58.7]} 5. Nxe4 {[%clk 0:02:42.3]}
5... dxe4 {[%clk 0:02:59.3]} 6. Bc4 {[%clk 0:02:39.4]} 6... a6 {[%clk
0:02:59.7]} 7. Ne2 {[%clk 0:02:31.9]} 7... b5 {[%clk 0:02:59.9]} 8. Bb3 {[%clk
0:02:33.3]} 8... Bb7 {[%clk 0:03:01.3]} 9. O-O {[%clk 0:02:34.1]} 9... c5 {[%clk
0:02:53.5]} 10. c3 {[%clk 0:02:33.2]} 10... Nc6 {[%clk 0:02:52]} 11. Be3 {[%clk
0:02:33.4]} 11... cxd4 {[%clk 0:02:43.9]} 12. cxd4 {[%clk 0:02:32.8]} 12... Nb4
{[%clk 0:02:35]} 13. Bc2 {[%clk 0:02:32.4]} 13... Be7 {[%clk 0:02:30]} 14. a3
{[%clk 0:02:27.6]} 14... Nxc2 {[%clk 0:02:30.1]} 15. Qxc2 {[%clk 0:02:29]} 15...
Rc8 {[%clk 0:02:29.4]} 16. Qb1 {[%clk 0:02:03.7]} 16... O-O {[%clk 0:02:24.1]}
17. Nc3 {[%clk 0:01:49.8]} 17... f5 {[%clk 0:02:14]} 18. exf6 {[%clk 0:01:48.4]}
18... Bxf6 {[%clk 0:02:15.4]} 19. Rd1 {[%clk 0:01:45.3]} 19... Rc4 {[%clk
0:02:12.1]} 20. Ne2 {[%clk 0:01:34.6]} 20... Qe8 {[%clk 0:01:58.2]} 21. b3
{[%clk 0:01:33.1]} 21... Rc8 {[%clk 0:01:52.9]} 22. Ra2 {[%clk 0:01:29.6]} 22...
Qg6 {[%clk 0:01:50.8]} 23. Rc2 {[%clk 0:01:27.5]} 23... Rxc2 {[%clk 0:01:46.9]}
24. Qxc2 {[%clk 0:01:28.1]} 24... Rc8 {[%clk 0:01:48.2]} 25. Qb1 {[%clk
0:01:24.6]} 25... Bd5 {[%clk 0:01:45.8]} 26. Ng3 {[%clk 0:01:24.2]} 26... Rc3
{[%clk 0:01:38.5]} 27. Rc1 {[%clk 0:00:53]} 27... Rxc1+ {[%clk 0:01:19.8]} 28.
Qxc1 {[%clk 0:00:44.5]} 28... h6 {[%clk 0:01:03.3]} 29. Qc8+ {[%clk 0:00:43]}
29... Kh7 {[%clk 0:01:03.4]} 30. Qxa6 {[%clk 0:00:43.5]} 30... Qe8 {[%clk
0:00:54.5]} 31. b4 {[%clk 0:00:33]} 31... Qd7 {[%clk 0:00:54.5]} 32. Qb6 {[%clk
0:00:29]} 32... Qc8 {[%clk 0:00:51.4]} 33. Qc5 {[%clk 0:00:29.6]} 33... Qa6
{[%clk 0:00:52.2]} 34. Qc3 {[%clk 0:00:29.9]} 34... Qa4 {[%clk 0:00:51.1]} 35.
h3 {[%clk 0:00:30.3]} 35... Qd1+ {[%clk 0:00:51.3]} 36. Kh2 {[%clk 0:00:31.8]}
36... h5 {[%clk 0:00:48.7]} 37. Qc1 {[%clk 0:00:23.8]} 37... Qxc1 {[%clk
0:00:39.7]} 38. Bxc1 {[%clk 0:00:24.7]} 38... Bxd4 {[%clk 0:00:40.9]} 39. Kg1
{[%clk 0:00:23.9]} 39... g6 {[%clk 0:00:36.8]} 40. Ne2 {[%clk 0:00:23]} 40...
Be5 {[%clk 0:00:36.7]} 41. Kf1 {[%clk 0:00:23.7]} 41... Kg7 {[%clk 0:00:37.8]}
42. Bd2 {[%clk 0:00:22.4]} 42... Bb2 {[%clk 0:00:37.5]} 43. Bc3+ {[%clk
0:00:22.5]} 43... Bxc3 {[%clk 0:00:37.8]} 44. Nxc3 {[%clk 0:00:24.1]} 44... Bc4+
{[%clk 0:00:39.1]} 45. Ke1 {[%clk 0:00:25.4]} 45... Kf6 {[%clk 0:00:40.7]} 46.
Kd2 {[%clk 0:00:26.9]} 46... Ke5 {[%clk 0:00:42]} 47. Ke3 {[%clk 0:00:28.2]}
47... Bf1 {[%clk 0:00:41.3]} 48. g3 {[%clk 0:00:25.7]} 48... Bc4 {[%clk
0:00:35.2]} 49. Nxe4 {[%clk 0:00:25.9]} 49... Bd5 {[%clk 0:00:28.7]} 50. f4+
{[%clk 0:00:22.4]} 50... Kf5 {[%clk 0:00:26.6]} 51. Nd6+ {[%clk 0:00:23.5]}
51... Kf6 {[%clk 0:00:27.3]} 52. g4 {[%clk 0:00:25]} 52... hxg4 {[%clk
0:00:27.6]} 53. hxg4 {[%clk 0:00:25.9]} 53... Bc6 {[%clk 0:00:29]} 54. g5+
{[%clk 0:00:23.4]} 54... Ke7 {[%clk 0:00:29.3]} 55. Ne4 {[%clk 0:00:24.3]} 55...
e5 {[%clk 0:00:28.9]} 56. Nc5 {[%clk 0:00:18.1]} 56... exf4+ {[%clk 0:00:28.2]}
57. Kxf4 {[%clk 0:00:19.7]} 57... Kd6 {[%clk 0:00:29.1]} 58. Ne4+ {[%clk
0:00:20]} 58... Ke6 {[%clk 0:00:29.3]} 59. Nc3 {[%clk 0:00:20.2]} 59... Kd6
{[%clk 0:00:28.5]} 60. Ne2 {[%clk 0:00:19]} 60... Kd5 {[%clk 0:00:28.4]} 61. Ke3
{[%clk 0:00:20.1]} 61... Kc4 {[%clk 0:00:29.2]} 62. Kd2 {[%clk 0:00:20.5]} 62...
Kb3 {[%clk 0:00:30.3]} 63. Nf4 {[%clk 0:00:22]} 63... Be4 {[%clk 0:00:30.4]} 64.
Ne6 {[%clk 0:00:22.4]} 64... Kxa3 {[%clk 0:00:30]} 65. Kc3 {[%clk 0:00:23.7]}
65... Bf5 {[%clk 0:00:30]} 66. Nc7 {[%clk 0:00:20.2]} 66... Ka4 {[%clk
0:00:26.5]} 67. Nd5 {[%clk 0:00:20.4]} 67... Ka3 {[%clk 0:00:23.4]} 68. Kd4
{[%clk 0:00:20.7]} 68... Be6 {[%clk 0:00:22.5]} 69. Nf4 {[%clk 0:00:21.7]} 69...
Bf7 {[%clk 0:00:23]} 70. Kc5 {[%clk 0:00:23.2]} 70... Be8 {[%clk 0:00:20.1]} 71.
Ne6 {[%clk 0:00:22.9]} 71... Kb3 {[%clk 0:00:21.2]} 72. Nc7 {[%clk 0:00:24]}
72... Bd7 {[%clk 0:00:21.5]} 73. Nxb5 {[%clk 0:00:25.1]} 73... Kc2 {[%clk
0:00:21.4]} 74. Nd6 {[%clk 0:00:26.4]} 74... Kd3 {[%clk 0:00:21.4]} 75. b5
{[%clk 0:00:27.7]} 75... Ke3 {[%clk 0:00:20.2]} 76. b6 {[%clk 0:00:28.6]} 1

[Event "Open Nuevo Centro. Jornada 1"]
[Site "Chess.com"]
[Date "2020.06.19"]
[Round "7"]
[White "Galiana Ferrer, Oscar"]
[Black "Mart�nez Cuenca, Jose Andr�s"]
[Result "1-0"]
[WhiteElo "957"]
[BlackElo "933"]
[TimeControl "180+2"]
[EndTime "11:54:37 PDT"]
[Termination "Victoria de CavalldeFoc2 por jaque mate"]

1. e4 {[%clk 0:03:01.9]} 1... c5 {[%clk 0:02:59.7]} 2. Nc3 {[%clk 0:03:01.3]}
2... g6 {[%clk 0:03:00.5]} 3. d4 {[%clk 0:03:00.4]} 3... cxd4 {[%clk 0:03:00.1]}
4. Qxd4 {[%clk 0:02:58.5]} 4... Nf6 {[%clk 0:02:56.8]} 5. Qd1 {[%clk 0:02:58.2]}
5... Nc6 {[%clk 0:02:51.7]} 6. Bg5 {[%clk 0:02:58.1]} 6... Bg7 {[%clk 0:02:48]}
7. Bxf6 {[%clk 0:02:58.9]} 7... Bxf6 {[%clk 0:02:48.1]} 8. Bd3 {[%clk
0:02:59.6]} 8... d6 {[%clk 0:02:32.8]} 9. Nf3 {[%clk 0:02:57]} 9... Be6 {[%clk
0:02:24]} 10. O-O {[%clk 0:02:56]} 10... O-O {[%clk 0:02:11.9]} 11. a3 {[%clk
0:02:51.6]} 11... Nd4 {[%clk 0:02:07.5]} 12. Nxd4 {[%clk 0:02:51.3]} 12... Bxd4
{[%clk 0:02:07.1]} 13. Be2 {[%clk 0:02:28.1]} 13... Qb6 {[%clk 0:02:00.1]} 14.
Na4 {[%clk 0:02:19.4]} 14... Qd8 {[%clk 0:01:47.4]} 15. Qxd4 {[%clk 0:02:15.6]}
15... Qc7 {[%clk 0:01:40.9]} 16. Qd1 {[%clk 0:02:14]} 16... h5 {[%clk
0:01:33.5]} 17. Nc3 {[%clk 0:02:14]} 17... Rfd8 {[%clk 0:01:24.2]} 18. Nd5
{[%clk 0:02:13.8]} 18... Bxd5 {[%clk 0:01:22.3]} 19. exd5 {[%clk 0:02:14.4]}
19... Rac8 {[%clk 0:01:13.4]} 20. c3 {[%clk 0:02:13.9]} 20... Qb6 {[%clk
0:00:59.8]} 21. Qc2 {[%clk 0:02:03.3]} 21... Qc5 {[%clk 0:00:50.8]} 22. Qd2
{[%clk 0:01:55.1]} 22... b5 {[%clk 0:00:37]} 23. a4 {[%clk 0:01:44]} 23... bxa4
{[%clk 0:00:35.4]} 24. Rxa4 {[%clk 0:01:41.6]} 24... Rb8 {[%clk 0:00:26.9]} 25.
Rc4 {[%clk 0:01:35.6]} 25... Qb6 {[%clk 0:00:22.9]} 26. Rb4 {[%clk 0:01:33.1]}
26... Qc7 {[%clk 0:00:20.7]} 27. Rxb8 {[%clk 0:01:33.5]} 27... Rxb8 {[%clk
0:00:21.8]} 28. b4 {[%clk 0:01:32.8]} 28... Qb7 {[%clk 0:00:19.9]} 29. Qe3
{[%clk 0:01:28.8]} 29... a6 {[%clk 0:00:19.1]} 30. Ra1 {[%clk 0:01:26]} 30...
Ra8 {[%clk 0:00:18.3]} 31. Qd3 {[%clk 0:01:22.8]} 31... Qb6 {[%clk 0:00:16.7]}
32. Rxa6 {[%clk 0:01:19.8]} 32... Rxa6 {[%clk 0:00:16.6]} 33. Qxa6 {[%clk
0:01:19.8]} 33... Qxa6 {[%clk 0:00:16.6]} 34. Bxa6 {[%clk 0:01:20.5]} 34... Kf8
{[%clk 0:00:15.1]} 35. g3 {[%clk 0:01:21.4]} 35... Ke8 {[%clk 0:00:15.7]} 36.
Kg2 {[%clk 0:01:22.6]} 36... Kd8 {[%clk 0:00:15.7]} 37. Bc4 {[%clk 0:01:22.8]}
37... Kc7 {[%clk 0:00:15.8]} 38. Kf3 {[%clk 0:01:23.1]} 38... Kb6 {[%clk
0:00:15.8]} 39. Ke3 {[%clk 0:01:24.1]} 39... Kc7 {[%clk 0:00:12.2]} 40. Kd3
{[%clk 0:01:25.1]} 40... Kd7 {[%clk 0:00:12.8]} 41. h3 {[%clk 0:01:25.1]} 41...
e6 {[%clk 0:00:12.8]} 42. dxe6+ {[%clk 0:01:25.3]} 42... fxe6 {[%clk 0:00:12.9]}
43. f4 {[%clk 0:01:26.2]} 43... Kc6 {[%clk 0:00:11.9]} 44. g4 {[%clk 0:01:26.8]}
44... hxg4 {[%clk 0:00:10.9]} 45. hxg4 {[%clk 0:01:27.6]} 45... d5 {[%clk
0:00:11.6]} 46. Ba2 {[%clk 0:01:27.4]} 46... Kb5 {[%clk 0:00:11.8]} 47. c4+
{[%clk 0:01:27.5]} 47... dxc4+ {[%clk 0:00:11.6]} 48. Bxc4+ {[%clk 0:01:27]}
48... Kxb4 {[%clk 0:00:12.5]} 49. Bxe6 {[%clk 0:01:27.8]} 49... Kc5 {[%clk
0:00:12.9]} 50. f5 {[%clk 0:01:28.4]} 50... gxf5 {[%clk 0:00:12.5]} 51. gxf5
{[%clk 0:01:29.1]} 51... Kd6 {[%clk 0:00:13.1]} 52. Ke4 {[%clk 0:01:24.2]} 52...
Ke7 {[%clk 0:00:13.3]} 53. Kf4 {[%clk 0:01:25]} 53... Kf6 {[%clk 0:00:13.7]} 54.
Bc8 {[%clk 0:01:24.2]} 54... Kf7 {[%clk 0:00:13.3]} 55. Kg5 {[%clk 0:01:23.6]}
55... Kg7 {[%clk 0:00:13.8]} 56. f6+ {[%clk 0:01:24.7]} 56... Kf7 {[%clk
0:00:14]} 57. Ba6 {[%clk 0:01:20.4]} 57... Kf8 {[%clk 0:00:13.3]} 58. Kg6 {[%clk
0:01:20.4]} 58... Kg8 {[%clk 0:00:13.7]} 59. f7+ {[%clk 0:01:19.5]} 59... Kf8
{[%clk 0:00:12.7]} 60. Bc4 {[%clk 0:01:08]} 60... Ke7 {[%clk 0:00:11.6]} 61. Kg7
{[%clk 0:01:07.2]} 61... Kd6 {[%clk 0:00:12]} 62. f8=Q+ {[%clk 0:01:08.1]} 62...
Ke5 {[%clk 0:00:12.5]} 63. Bd5 {[%clk 0:01:07.9]} 63... Kxd5 {[%clk 0:00:12]}
64. Qf7+ {[%clk 0:01:08.5]} 64... Ke5 {[%clk 0:00:11.5]} 65. Qf6+ {[%clk
0:01:09.1]} 65... Kd5 {[%clk 0:00:10.7]} 66. Kg6 {[%clk 0:01:08.7]} 66... Ke4
{[%clk 0:00:10.1]} 67. Qf5+ {[%clk 0:01:08.3]} 67... Ke3 {[%clk 0:00:08.5]} 68.
Kg5 {[%clk 0:01:08.6]} 68... Kd4 {[%clk 0:00:07.1]} 69. Kh4 {[%clk 0:01:05.9]}
69... Ke3 {[%clk 0:00:06.3]} 70. Qg4 {[%clk 0:01:04.5]} 70... Kd3 {[%clk
0:00:05.2]} 71. Kh3 {[%clk 0:01:04.8]} 71... Ke3 {[%clk 0:00:04.7]} 72. Kg2
{[%clk 0:01:05.2]} 72... Kd3 {[%clk 0:00:04.2]} 73. Kf2 {[%clk 0:01:05.5]} 73...
Kc3 {[%clk 0:00:03.6]} 74. Kg3 {[%clk 0:01:05.5]} 74... Kd3 {[%clk 0:00:04]} 75.
Kh4 {[%clk 0:01:06.4]} 75... Ke3 {[%clk 0:00:04.8]} 76. Kg5 {[%clk 0:01:07.4]}
76... Kd3 {[%clk 0:00:05.5]} 77. Kf5 {[%clk 0:01:08.7]} 77... Ke3 {[%clk
0:00:05.9]} 78. Ke5 {[%clk 0:01:08.9]} 78... Kd3 {[%clk 0:00:06.6]} 79. Qf4
{[%clk 0:01:06.4]} 79... Kc3 {[%clk 0:00:06.9]} 80. Kd5 {[%clk 0:01:07.5]} 80...
Kd3 {[%clk 0:00:07]} 81. Qf3+ {[%clk 0:01:07.3]} 81... Kd2 {[%clk 0:00:06.5]}
82. Kd4 {[%clk 0:01:08.3]} 82... Kc2 {[%clk 0:00:05.9]} 83. Ke3 {[%clk
0:01:07.4]} 83... Kb2 {[%clk 0:00:05.7]} 84. Kd4 {[%clk 0:01:08.1]} 84... Kc2
{[%clk 0:00:06.2]} 85. Qe3 {[%clk 0:01:05]} 85... Kb2 {[%clk 0:00:05.9]} 86. Kc4
{[%clk 0:01:06]} 86... Kc2 {[%clk 0:00:05.8]} 87. Qe2+ {[%clk 0:01:05.8]} 87...
Kc1 {[%clk 0:00:05.3]} 88. Kc3 {[%clk 0:01:06.8]} 88... Kb1 {[%clk 0:00:05.2]}
89. Qd2 {[%clk 0:01:05.7]} 89... Ka1 {[%clk 0:00:05.3]} 90. Qb2# {[%clk
0:01:06.5]} 1

[Event "Open Nuevo Centro. Jornada 1"]
[Site "Chess.com"]
[Date "2020.06.19"]
[Round "8"]
[White "Rodriguez, Mathias"]
[Black "M�ndez Gim�nez , N�stor Emmanuel"]
[Result "1-0"]
[WhiteElo "1972"]
[BlackElo "1141"]
[TimeControl "180+2"]
[EndTime "11:55:32 PDT"]
[Termination "Victoria de niguil por jaque mate"]

1. e4 {[%clk 0:03:01.9]} 1... e6 {[%clk 0:03:01.7]} 2. d4 {[%clk 0:03:01.2]}
2... c5 {[%clk 0:03:02.3]} 3. Nc3 {[%clk 0:03:02.9]} 3... Nc6 {[%clk 0:03:02.4]}
4. d5 {[%clk 0:03:03.4]} 4... exd5 {[%clk 0:03:03]} 5. exd5 {[%clk 0:03:05.3]}
5... Nb4 {[%clk 0:03:03.7]} 6. f4 {[%clk 0:03:05.1]} 6... Nf6 {[%clk 0:03:04.4]}
7. Nf3 {[%clk 0:03:06.5]} 7... Nfxd5 {[%clk 0:03:05.1]} 8. Nxd5 {[%clk
0:03:07.5]} 8... Nxd5 {[%clk 0:03:05.9]} 9. Qxd5 {[%clk 0:03:09.3]} 9... d6
{[%clk 0:03:04.2]} 10. Ng5 {[%clk 0:03:10.5]} 10... f6 {[%clk 0:03:03.4]} 11.
Qf7# {[%clk 0:03:11.1]} 1

[Event "Open Nuevo Centro. Jornada 1"]
[Site "Chess.com"]
[Date "2020.06.19"]
[Round "8"]
[White "Granero Roca, Antonio"]
[Black "Clement G�mez, Jos� Antonio"]
[Result "1/2-1/2"]
[WhiteElo "2527"]
[BlackElo "2488"]
[TimeControl "180+2"]
[EndTime "11:55:47 PDT"]
[Termination "Partida en tablas por mutuo acuerdo"]

1. Nf3 {[%clk 0:03:01.9]} 1... Nf6 {[%clk 0:03:01]} 2. g3 {[%clk 0:03:03.4]}
2... b6 {[%clk 0:03:02.8]} 3. Bg2 {[%clk 0:03:04.2]} 3... Bb7 {[%clk 0:03:04.7]}
4. O-O {[%clk 0:03:04]} 4... c5 {[%clk 0:03:06.2]} 5. c4 {[%clk 0:03:04.3]} 5...
g6 {[%clk 0:03:07.3]} 6. d3 {[%clk 0:03:05.2]} 6... Bg7 {[%clk 0:03:08.3]} 7.
Nc3 {[%clk 0:03:06.8]} 7... O-O {[%clk 0:03:08.9]} 8. Bg5 {[%clk 0:03:06.7]}
8... d6 {[%clk 0:03:08.1]} 9. Qd2 {[%clk 0:03:07.5]} 9... Nbd7 {[%clk
0:03:08.9]} 10. Bh6 {[%clk 0:03:08.3]} 10... Rc8 {[%clk 0:03:08.9]} 11. Bxg7
{[%clk 0:03:09.2]} 11... Kxg7 {[%clk 0:03:10.8]} 12. a3 {[%clk 0:03:08.1]} 12...
e6 {[%clk 0:03:06.7]} 13. Rac1 {[%clk 0:03:06.2]} 1/2-1

[Event "Open Nuevo Centro. Jornada 1"]
[Site "Chess.com"]
[Date "2020.06.19"]
[Round "8"]
[White "Camison Zornoza, Cesar"]
[Black "Galiana Ferrer, Oscar"]
[Result "1-0"]
[WhiteElo "1393"]
[BlackElo "947"]
[TimeControl "180+2"]
[EndTime "11:56:18 PDT"]
[Termination "Victoria de cczchess2019 por abandono"]

1. e4 {[%clk 0:03:01.9]} 1... e5 {[%clk 0:03:00.1]} 2. Nf3 {[%clk 0:03:01.9]}
2... Nc6 {[%clk 0:02:58.8]} 3. Nc3 {[%clk 0:03:02.4]} 3... Nf6 {[%clk
0:02:59.1]} 4. Nxe5 {[%clk 0:03:02.9]} 4... Nxe5 {[%clk 0:02:59.2]} 5. d4 {[%clk
0:03:04]} 5... Nc6 {[%clk 0:02:56.6]} 6. d5 {[%clk 0:03:04.8]} 6... Ne7 {[%clk
0:02:57.4]} 7. e5 {[%clk 0:03:05.1]} 7... Nfg8 {[%clk 0:02:50.8]} 8. d6 {[%clk
0:03:05.5]} 8... cxd6 {[%clk 0:02:51.7]} 9. exd6 {[%clk 0:03:06.3]} 9... Nf5
{[%clk 0:02:49.7]} 10. Nb5 {[%clk 0:03:07.2]} 10... Qb6 {[%clk 0:02:45.8]} 11.
Nc7+ {[%clk 0:02:52.4]} 11... Kd8 {[%clk 0:02:43]} 12. Nxa8 {[%clk 0:02:53]}
12... Nxd6 {[%clk 0:02:43.6]} 13. Nxb6 {[%clk 0:02:53.1]} 1

[Event "Open Nuevo Centro. Jornada 1"]
[Site "Chess.com"]
[Date "2020.06.19"]
[Round "8"]
[White "Donate Moreno, Silvia"]
[Black "Donate Moreno, David"]
[Result "1-0"]
[WhiteElo "1782"]
[BlackElo "1508"]
[TimeControl "180+2"]
[EndTime "11:56:24 PDT"]
[Termination "Victoria de 2camarones por abandono"]

1. e4 {[%clk 0:03:01.9]} 1... c6 {[%clk 0:02:57.6]} 2. d4 {[%clk 0:03:01.3]}
2... d5 {[%clk 0:02:58.7]} 3. exd5 {[%clk 0:03:02.1]} 3... cxd5 {[%clk
0:02:59.9]} 4. Bd3 {[%clk 0:03:02.8]} 4... Nc6 {[%clk 0:02:57.3]} 5. c3 {[%clk
0:03:02.3]} 5... Nf6 {[%clk 0:02:53.6]} 6. Bf4 {[%clk 0:03:02.5]} 6... Bg4
{[%clk 0:02:52.1]} 7. Qb3 {[%clk 0:03:03]} 7... Qc8 {[%clk 0:02:48.8]} 8. Nd2
{[%clk 0:02:57.7]} 8... e6 {[%clk 0:02:49.1]} 9. Ngf3 {[%clk 0:02:57.6]} 9...
Bxf3 {[%clk 0:02:36]} 10. Nxf3 {[%clk 0:02:51.9]} 10... Be7 {[%clk 0:02:35.8]}
11. O-O {[%clk 0:02:48.4]} 1

[Event "Open Nuevo Centro. Jornada 1"]
[Site "Chess.com"]
[Date "2020.06.19"]
[Round "8"]
[White "Furio Martinez, Francisco"]
[Black "Mart�nez Cuenca, Adri�n "]
[Result "1/2-1/2"]
[WhiteElo "641"]
[BlackElo "625"]
[TimeControl "180+2"]
[EndTime "11:58:02 PDT"]
[Termination "Partida en tablas por mutuo acuerdo"]

1. d4 {[%clk 0:03:01.9]} 1... d5 {[%clk 0:02:56.8]} 2. e3 {[%clk 0:03:03.8]}
2... e6 {[%clk 0:02:54]} 3. Nf3 {[%clk 0:03:04.9]} 3... f5 {[%clk 0:02:47]} 4.
Be2 {[%clk 0:03:05.1]} 4... c6 {[%clk 0:02:37.2]} 5. O-O {[%clk 0:03:04]} 5...
g6 {[%clk 0:02:37.5]} 6. Nbd2 {[%clk 0:03:02.1]} 6... a6 {[%clk 0:02:39.4]} 7.
b3 {[%clk 0:03:01.5]} 7... Be7 {[%clk 0:02:32.2]} 8. Bb2 {[%clk 0:03:02.3]} 8...
b6 {[%clk 0:02:12.7]} 9. Rc1 {[%clk 0:02:47.9]} 9... Nf6 {[%clk 0:02:10]} 10.
Nc4 {[%clk 0:02:44.1]} 10... dxc4 {[%clk 0:01:59.5]} 11. d5 {[%clk 0:02:43.6]}
11... cxd5 {[%clk 0:01:56.4]} 12. bxc4 {[%clk 0:02:41.8]} 12... dxc4 {[%clk
0:01:56.2]} 13. Bxf6 {[%clk 0:02:41.3]} 13... Bxf6 {[%clk 0:01:53.5]} 14. Bxc4
{[%clk 0:02:40]} 14... Qxd1 {[%clk 0:01:51.3]} 15. Rcxd1 {[%clk 0:02:38.9]}
15... O-O {[%clk 0:01:48.8]} 16. Rd6 {[%clk 0:02:30.6]} 1/2-1